Cogmind - Beta 16 @@@ ROGUE MODE // 2026.02.07 @ 22:37:39 Player: FretfulMantis Result: Destroyed by O1-5HQ(z) with Zionite Laser-S Performance ------------- Evolutions (4) 2000 Regions Visited (12) 2400 Robots Destroyed (48) 240 Value Destroyed (1715) 1715 Prototype IDs (2) 40 Alien Tech Used (0) 0 Bonus (1021) 1021 TOTAL SCORE: 7416 Bonus ------- Follower Combat Kills 117 Destroyed Z-Imprinter 1000 Friendly Fire -96 Cogmind --------- Core Integrity 0/850 Matter 149/300 Energy 99/100 System Corruption 0% Temperature Cool (18) Movement Core (50) Location -6/Deep Caves Parts ------- > --- POWER (1) -------- (None) > --- PROPULSION (5) --- (None) > --- UTILITY (6) ------ (None) > --- WEAPON (3) ------- (None) > --- INVENTORY (5) ---- Makeshift Power Source Advanced Sensor Array Zionite Light Carapace Makeshift Hacking Suite Datajack Peak State ------------ > --- POWER ------------ Angular Momentum Engine > --- PROPULSION ------- Flexi-carbon Leg Armored Leg Improved VSS Leg Armored Huge Wheel > --- UTILITY ---------- Advanced Heat Sink Large Storage Unit Improved Signal Interpreter Improved Targeting Computer Target Analyzer Layered Medium Armor Plating > --- WEAPON ----------- Magnetic Acceleration Cannon Bore Cannon Heavy Rocket Launcher > --- INVENTORY -------- Makeshift Power Source Fission Core Improved Trap Scanner Machine Analyzer Improved Sensor Array Advanced Sensor Array 0b10 Decoder Chip [Generic] Medium Armor Plating Arc Thrower Heavy Beamcaster Heavy Beamcaster Datajack CR-A16's Pointy Stick [Rating: 66] Favorites ----------- Power Light Ion Engine Engine Light Ion Engine Power Core Nuclear Core Propulsion Carbon-fiber Leg Treads Light Treads Leg Carbon-fiber Leg Wheel Compact Wheel Hover Unit Zionite Glidesys I Utility Large Storage Unit Device Sensor Array Storage Large Storage Unit Processor Signal Interpreter Hackware Makeshift Hacking Suite Protection Light Armor Plating Weapon Minigun Energy Gun Heavy Laser Ballistic Gun Minigun Ballistic Cannon Magnetic Acceleration Cannon Launcher Heavy Rocket Launcher Impact Weapon Great Maul Piercing Weapon CR-A16's Pointy Stick Build | -11 -10 -9 -9 -8 -8 -8 -8 -6 -6 -6 -6 -6 ------- Run | Yrd Mat Mat Min Mat Sto Rec Scr Fac Low Low Zio Dee Slots Evolved 8 | . . 2 . 2 . . . 4 . . . . Power . | . . . . . . . . . . . . . Propulsion 3 | . . 1 . 1 . . . 1 . . . . Utility 4 | . . 1 . 1 . . . 2 . . . . Weapon 1 | . . . . . . . . 1 . . . . Parts Attached 74 | 5 8 14 2 2 7 2 . 12 6 2 4 10 Power 9 | 1 1 1 . . . 1 . 2 1 . . 2 Engine 6 | 1 1 1 . . . . . 1 1 . . 1 Core 3 | . . . . . . 1 . 1 . . . 1 Reactor . | . . . . . . . . . . . . . Propulsion 22 | 2 2 4 1 1 5 . . 3 2 . . 2 Treads 2 | . . 1 . 1 . . . . . . . . Leg 9 | . . . . . 4 . . 3 2 . . . Wheel 10 | 2 2 3 1 . 1 . . . . . . 1 Hover 1 | . . . . . . . . . . . . 1 Flight . | . . . . . . . . . . . . . Utility 25 | . 5 3 1 1 1 1 . 6 2 . 2 3 Device 9 | . 1 2 1 . 1 . . 3 . . . 1 Storage 3 | . 3 . . . . . . . . . . . Processor 5 | . . 1 . . . . . 1 1 . 2 . Hackware 1 | . . . . . . . . . . . . 1 Protection 7 | . 1 . . 1 . 1 . 2 1 . . 1 Artifact . | . . . . . . . . . . . . . Weapon 18 | 2 . 6 . . 1 . . 1 1 2 2 3 Energy Gun 6 | 1 . 1 . . . . . . 1 . 1 2 Energy Cannon . | . . . . . . . . . . . . . Ballistic Gun 7 | 1 . 4 . . 1 . . 1 . . . . Ballistic Cannon 2 | . . . . . . . . . . 1 1 . Launcher 1 | . . . . . . . . . . 1 . . Special Weapon . | . . . . . . . . . . . . . Impact Weapon 1 | . . 1 . . . . . . . . . . Slashing Weapon . | . . . . . . . . . . . . . Piercing Weapon 1 | . . . . . . . . . . . . 1 Special Melee Weapon . | . . . . . . . . . . . . . Unidentified Prototypes 2 | . . . . . 1 . . . . . . 1 Parts Lost 34 | . 3 2 1 . . 1 . 6 3 . . 18 Power 5 | . 1 1 . . . . . 1 . . . 2 Propulsion 13 | . 2 . 1 . . . . 2 1 . . 7 Utility 6 | . . . . . . 1 . 2 1 . . 2 Weapon 10 | . . 1 . . . . . 1 1 . . 7 Highest Loss Streak 9 | . 1 1 1 . . 1 . 6 3 . . 9 To Critical Strikes . | . . . . . . . . . . . . . Average Backups 13 | 2 7 11 14 13 14 14 15 13 13 14 13 11 Power 1 | . 1 1 1 1 1 1 1 1 1 2 2 1 Propulsion 1 | 1 2 2 1 . . 2 2 1 1 1 1 . Utility 6 | . 1 3 7 7 7 7 8 6 7 8 6 6 Weapon 3 | . 1 4 4 5 4 4 4 3 2 2 3 2 Tool/Special . | . . . . . . . . . . . . . Unused Backups 19 | . . 6 1 . 1 . . . 2 . 1 8 Power 3 | . . 1 . . . . . . 1 . . 1 Propulsion 1 | . . 1 . . . . . . . . . . Utility 7 | . . . . . . . . . . . 1 6 Weapon 7 | . . 4 1 . 1 . . . 1 . . . Tool/Special 1 | . . . . . . . . . . . . 1 Average Slot Usage (%) 97 | . 89 99 100 96 100 100 100 93 97 100 100 90 Engine 5 | . 13 11 11 9 9 1 . 1 6 6 6 3 Core 2 | . . . . . . 7 9 4 . . . 2 Leg 24 | . . . . . 11 36 36 27 30 33 33 23 Wheel 6 | . 23 24 33 27 18 . . . . . . 2 Device 9 | . . 10 6 9 9 9 9 19 15 13 6 6 Storage 8 | . 13 11 11 9 9 9 9 6 6 6 6 6 Processor 9 | . . . 11 9 9 9 9 6 10 13 19 20 Protection 7 | . 8 11 4 9 8 9 9 5 6 6 6 3 Energy Gun 3 | . 14 6 . . . . . . 4 6 6 6 Ballistic Gun 12 | . 14 14 22 18 12 18 18 19 15 8 . . Ballistic Cannon 2 | . . . . . . . . . . 3 11 7 Peak Build Rating 66 | 5 9 17 16 18 27 29 29 51 57 60 65 66 Average Rating 36 | 3 7 13 15 17 21 28 29 39 52 58 64 59 On Entrance 29 | . 5 7 16 16 18 27 29 29 51 57 59 65 Avg Prop Armor Cover (%) 11 | . . 11 . 8 8 . . . . . . 16 Naked Turns . | . . . . . . . . . . . . . Heaviest Build 64 | 5 26 32 30 33 34 37 37 45 53 62 64 64 Greatest Support 81 | 26 26 48 48 48 60 60 60 75 81 81 81 81 Greatest Overweight (x) 2 | . 1 1 . . 2 . . . . . . 1 Average Overweight (x) . | . . . . . . . . . . . . . Largest Inventory Capacity 15 | 5 15 15 15 15 15 15 15 15 15 15 15 15 Average Capacity 14 | 5 8 15 15 15 15 15 15 15 15 15 15 15 Most Carried 15 | 5 10 15 15 14 15 15 15 15 15 15 15 15 Average Carried 13 | 3 7 11 14 13 14 14 15 14 14 14 14 12 Final Capacity 15 | 5 15 15 15 15 15 15 15 15 15 15 15 5 Final Carried 15 | 5 10 15 15 13 15 15 15 14 15 15 15 5 Class Distribution -------------------- 44% | Mutant 15% | Derelict-Skirmisher 13% | Derelict-Gunner 8% | Skirmisher 6% | Commander-Mutant 4% | Scavenger-Mutant Dominant Class ---------------- Mutant | -10/Materials Scavenger-Mutant | -9/Materials Mutant | -9/Mines Mutant | -8/Materials Mutant | -8/Storage Mutant | -8/Recycling Commander-Mutant | -8/Scraptown Skirmisher | -6/Factory Derelict-Skirmisher | -6/Lower Caves Derelict-Skirmisher | -6/Lower Caves Derelict-Gunner | -6/Zion Derelict-Gunner | -6/Deep Caves Resources | -11 -10 -9 -9 -8 -8 -8 -8 -6 -6 -6 -6 -6 ----------- Run | Yrd Mat Mat Min Mat Sto Rec Scr Fac Low Low Zio Dee Matter Collected 1879 | 190 156 113 . . 275 218 . 310 200 105 137 175 Remotely . | . . . . . . . . . . . . . Salvage Created 2145 | . 407 197 . . 221 453 . 359 111 187 . 210 Parts 113 | . 18 13 . . 14 21 . 16 9 4 . 18 Haulers Intercepted 2 | . 1 . . . 1 . . . . . . . Recyclers Shooed 1 | . . . . . . 1 . . . . . . Parts Field Recycled . | . . . . . . . . . . . . . Retrieved Matter . | . . . . . . . . . . . . . Parts Self-Destructed 11 | . . . . . . . . . 7 2 2 . Prevented . | . . . . . . . . . . . . . Parts Restored . | . . . . . . . . . . . . . Kills | -11 -10 -9 -9 -8 -8 -8 -8 -6 -6 -6 -6 -6 ------- Run | Yrd Mat Mat Min Mat Sto Rec Scr Fac Low Low Zio Dee Combat Hostiles Destroyed 43 | . 5 6 . . 4 9 . 5 2 5 . 7 Melee 2 | . . . . . . . . . . . . 2 Guns 33 | . 5 6 . . 4 9 . 5 2 1 . 1 Cannons 3 | . . . . . . . . . . 1 . 2 AOE 5 | . . . . . . . . . . 3 . 2 Classes Destroyed 15 | . 5 2 . . . 4 . 1 . . . 3 Worker 3 | . 1 . . . 2 . . . . . . . Builder 2 | . 1 . . . . . . 1 . . . . Hauler 2 | . 1 . . . 1 . . . . . . . Recycler 1 | . 1 . . . . . . . . . . . Swarmer 5 | . . 3 . . 2 . . . . . . . Grunt 15 | . 5 1 . . 2 1 . 3 . 3 . . Brawler 1 | . . . . . . 1 . . . . . . Duelist 2 | . . . . . . . . 1 . 1 . . Protector 1 | . . . . . . 1 . . . . . . Sentry 8 | . . 2 . . . 4 . 1 . 1 . . Hunter 2 | . . . . . . 1 . . 1 . . . Programmer 2 | . . . . . . 1 . . 1 . . . Z-Technician 5 | . . . . . . . . . . . . 5 Z-Light 3 | . . . . . . . . . . . . 3 Assembled 3 | . . . . . . . . . . . . 3 Best Kill Streak 6 | . 2 5 . . 2 4 . 6 1 4 . 5 Combat Bots Only 5 | . 2 5 . . 2 4 . 3 1 4 . 3 Max Kills in Single Turn 1 | . 1 1 . . 1 1 . 1 1 1 . 1 Gunslinging . | . . . . . . . . . . . . . Exploded 1 | . . . . . . . . . . 1 . 1 Melee 1 | . . . . . . . . . . . . 1 Uniques/NPCs Destroyed 1 | . . . . . . . . . . . . 1 Z-Imprinter (-6/Deep Caves) Combat | -11 -10 -9 -9 -8 -8 -8 -8 -6 -6 -6 -6 -6 -------- Run | Yrd Mat Mat Min Mat Sto Rec Scr Fac Low Low Zio Dee Hostile Shots Fired 405 | . 28 38 . . 22 43 . 74 22 42 . 136 Missed 118 | . 5 11 . . 9 10 . 20 7 14 . 42 Hits 287 | . 23 27 . . 13 33 . 54 15 28 . 94 Melee 5 | . . . . . . . . 4 . 1 . . Projectile 282 | . 23 27 . . 13 33 . 50 15 27 . 94 Critical Strikes 6 | . . 1 . . 1 1 . 3 . . . . Part Disruptions 1 | . . . . . . 1 . . . . . . Damage Taken 5725 | . 325 336 37 . 199 490 . 801 246 448 . 2843 Core 1076 | . 103 27 7 . 33 55 . 37 30 68 . 716 Absorbed by Shields . | . . . . . . . . . . . . . Redirected to Shielding 7 | . 2 5 . . . . . . . . . . Core Remaining (%) 83 | 100 58 . 91 . . . 84 . . . . . Volleys Fired 154 | . 34 20 . . 18 22 . 21 9 10 . 20 Largest 3 | . 2 2 . . 2 2 . 3 3 3 . 3 Hottest 173 | . 60 90 . . 50 50 . 75 75 119 . 173 Shots Fired 330 | . 68 39 . . 27 45 . 55 26 19 . 51 Gun 284 | . 68 39 . . 27 45 . 55 26 10 . 14 Cannon 34 | . . . . . . . . . . 3 . 31 Launcher 12 | . . . . . . . . . . 6 . 6 Special . | . . . . . . . . . . . . . Kinetic 238 | . 34 13 . . 27 45 . 55 25 8 . 31 Thermal 78 | . 34 26 . . . . . . 1 5 . 12 Explosive 12 | . . . . . . . . . . 6 . 6 Electromagnetic 2 | . . . . . . . . . . . . 2 Robot Hit Streak 15 | . 7 11 . . 3 15 . 15 8 13 . 2 Robot Miss Streak 16 | . 3 3 . . 3 3 . 4 2 1 . 16 Penetration Max . | . . . . . . . . . . . . . Secondary Targets 9 | . 1 2 . . 1 4 . 1 . . . . Max Gunslinging Chain 1 | . 1 1 . . 1 1 . 1 . . . . Shots Hit Robots 213 | . 43 28 . . 17 35 . 40 17 14 . 19 Core Hits 105 | . 18 10 . . 9 12 . 17 6 13 . 20 Critical Kills . | . . . . . . . . . . . . . Critical Parts Destroyed 4 | . 1 . . . 2 . . 1 . . . . Critical Strikes 7 | . 1 . . . 2 . . 1 . . . 3 Destroy 2 | . 1 . . . . . . 1 . . . . Blast 1 | . . . . . . . . . . . . 1 Smash 2 | . . . . . 2 . . . . . . . Impale 2 | . . . . . . . . . . . . 2 Melee Attacks 22 | . . 1 . . 7 . . 1 . . . 13 Impact 9 | . . 1 . . 7 . . 1 . . . . Slashing . | . . . . . . . . . . . . . Piercing 13 | . . . . . . . . . . . . 13 Sneak Attacks 7 | . . . . . 2 . . . . . . 5 Combat Hostiles . | . . . . . . . . . . . . . Follow-up Attacks . | . . . . . . . . . . . . . Damage Inflicted 4978 | . 418 331 . . 508 670 . 682 287 717 . 1365 Guns 2872 | . 418 328 . . 290 670 . 682 287 153 . 44 Cannons 199 | . . . . . . . . . . 34 . 165 Explosions 1143 | . . . . . . . . . . 511 . 632 Melee 742 | . . . . . 218 . . . . . . 524 Ramming 22 | . . 3 . . . . . . . 19 . . Kinetic 2490 | . 178 129 . . 290 670 . 682 287 89 . 165 Thermal 581 | . 240 199 . . . . . . . 98 . 44 Explosive 1143 | . . . . . . . . . . 511 . 632 Electromagnetic . | . . . . . . . . . . . . . Impact 218 | . . . . . 218 . . . . . . . Slashing . | . . . . . . . . . . . . . Piercing 524 | . . . . . . . . . . . . 524 Highest Corruption 3 | . . . . . . 2 2 . 3 3 3 . Average Corruption 2 | . . . . . . 1 2 . 2 3 3 . Corruption Purged . | . . . . . . . . . . . . . Corruption Blocked . | . . . . . . . . . . . . . Effects 25 | . . . . . . 1 2 . 6 14 2 . Message Errors 4 | . . . . . . . 1 . . 2 1 . Matter Fused 7 | . . . . . . . . . 1 5 1 . Energy Discharges 2 | . . . . . . . . . 2 . . . Parts Fused 1 | . . . . . . . . . . 1 . . Data Loss (minor) 4 | . . . . . . . 1 . 2 1 . . Data Loss (major) 3 | . . . . . . . . . . 3 . . Misfires 4 | . . . . . . 1 . . 1 2 . . Overload Shots . | . . . . . . . . . . . . . Overflow Damage 284 | . . . . . 178 . . . . . . 106 Projectiles . | . . . . . . . . . . . . . Explosions 16 | . . . . . . . . . . . . 16 Melee 268 | . . . . . 178 . . . . . . 90 Knockbacks 2 | . . . . . 1 . . . . . . 1 Impact 1 | . . . . . 1 . . . . . . . Kinetic 1 | . . . . . . . . . . . . 1 Secondary . | . . . . . . . . . . . . . Self-Inflicted Damage 52 | . . 1 . . . . . . . 51 . . Shots 1 | . . . . . . . . . . 1 . . Rammed 2 | . . 2 . . . . . . . . . . Targets Rammed 3 | . . 2 . . . . . . . 1 . . Kicked 1 | . . . . . . . . . . 1 . . Crushed . | . . . . . . . . . . . . . Highest Temperature 416 | . 168 120 . . 15 47 . 69 36 158 . 416 Average Temperature 73 | . 42 39 . . 4 13 . 34 18 56 . 197 Received Heat Transfer 1792 | . 165 114 . . 90 153 . 300 . 102 . 868 Effects 4 | . . . . . . . . . . . . 4 Energy Bleed 1 | . . . . . . . . . . . . 1 Interference 2 | . . . . . . . . . . . . 2 Short Circuit 1 | . . . . . . . . . . . . 1 Siege Activations . | . . . . . . . . . . . . . Martial Activations . | . . . . . . . . . . . . . Shielding Activations . | . . . . . . . . . . . . . Robots Disrupted . | . . . . . . . . . . . . . Combat Hostiles . | . . . . . . . . . . . . . Robots Corrupted 1 | . . . . . 1 . . . . . . . Combat Hostiles . | . . . . . . . . . . . . . Parts Fried 1 | . . . . . 1 . . . . . . . Impact Corruptions 5 | . . . . . 5 . . . . . . . Robots Melted . | . . . . . . . . . . . . . Combat Hostiles . | . . . . . . . . . . . . . Parts Melted 2 | . 2 . . . . . . . . . . . Heat Transferred 1294 | . 550 485 . . . . . . . 185 . 74 Parts Sabotaged . | . . . . . . . . . . . . . Parts Stolen . | . . . . . . . . . . . . . Parts Stripped . | . . . . . . . . . . . . . Power Chain Reactions . | . . . . . . . . . . . . . Alert | -11 -10 -9 -9 -8 -8 -8 -8 -6 -6 -6 -6 -6 ------- Run | Yrd Mat Mat Min Mat Sto Rec Scr Fac Low Low Zio Dee Maximum Alert Level . | . . . . . . . . . . . . . Low Security (%) 100 | 100 100 100 100 100 100 100 . 100 . . . . Level 1 . | . . . . . . . . . . . . . Level 2 . | . . . . . . . . . . . . . Level 3 . | . . . . . . . . . . . . . Level 4 . | . . . . . . . . . . . . . Level 5 . | . . . . . . . . . . . . . High Security . | . . . . . . . . . . . . . Max Security . | . . . . . . . . . . . . . Peak Influence 189 | . 50 111 9 . 56 189 . 51 . . . . Initial 9 | . . . 9 . . . . . . . . . Average 35 | . 14 45 . . 9 65 . 14 . . . . Influence Increases 1401 | . 200 176 . . 186 424 . 230 60 125 . . Destroy 0b10 Robot/C 760 | . 100 120 . . 120 160 . 120 40 100 . . Destroy 0b10 Robot/NC 45 | . 20 . . . 15 5 . 5 . . . . Destroy Leader 134 | . 22 40 . . 12 . . 30 20 10 . . Allied During Kill 7 | . . . . . 6 . . 1 . . . . Successful Hack 59 | . 28 . . . . 19 . 12 . . . . Select Force Hacks 240 | . . . . . . 240 . . . . . . Disable Machine 60 | . . 15 . . 30 . . 15 . . . . Destroy Structure 6 | . . 1 . . 3 . . 2 . . . . Partial Spotted 15 | . 15 . . . . . . . . . . . Lose Combat Pursuer 75 | . 15 . . . . . . 45 . 15 . . Influence Decreases 1401 | . 200 150 26 . 186 424 . 204 86 125 . . Entered New Map 27 | . . . 17 . . . . . 10 . . . Time Decay 1180 | . 190 140 9 . 105 414 . 131 66 125 . . Lost Part 90 | . 10 10 . . . 10 . 50 10 . . . Lost Ally 63 | . . . . . 40 . . 23 . . . . Purge Threat 41 | . . . . . 41 . . . . . . . Squads Dispatched 8 | . . 2 . . 4 . . 2 . . . . Investigation 3 | . . . . . 2 . . 1 . . . . Extermination . | . . . . . . . . . . . . . Reinforcement 5 | . . 2 . . 2 . . 1 . . . . Assault . | . . . . . . . . . . . . . Garrison . | . . . . . . . . . . . . . Intercept . | . . . . . . . . . . . . . Searches Triggered . | . . . . . . . . . . . . . Construction Impeded . | . . . . . . . . . . . . . Haulers Reinforced . | . . . . . . . . . . . . . Active Scanning Responses . | . . . . . . . . . . . . . Cargo Convoy Interrupts . | . . . . . . . . . . . . . Stealth | -11 -10 -9 -9 -8 -8 -8 -8 -6 -6 -6 -6 -6 --------- Run | Yrd Mat Mat Min Mat Sto Rec Scr Fac Low Low Zio Dee Distress Signals 3 | . 1 1 . . . . . 1 . . . . Communications Jammed . | . . . . . . . . . . . . . Distress Signals . | . . . . . . . . . . . . . Times Spotted 75 | . 8 12 . . 14 9 . 14 2 8 . 8 Peak Tracking Total 8 | . 4 4 . . 5 4 . 8 1 3 . 3 Tactical Retreats 3 | . 1 . . . . . . 1 . 1 . . Traps | -11 -10 -9 -9 -8 -8 -8 -8 -6 -6 -6 -6 -6 ------- Run | Yrd Mat Mat Min Mat Sto Rec Scr Fac Low Low Zio Dee Traps Triggered 1 | . 1 . . . . . . . . . . . Indirectly . | . . . . . . . . . . . . . Trap Hack Attempts . | . . . . . . . . . . . . . Triggered . | . . . . . . . . . . . . . Disarmed . | . . . . . . . . . . . . . Reprogrammed . | . . . . . . . . . . . . . Reused . | . . . . . . . . . . . . . Traps Extracted . | . . . . . . . . . . . . . Installed . | . . . . . . . . . . . . . Triggered . | . . . . . . . . . . . . . Machines | -11 -10 -9 -9 -8 -8 -8 -8 -6 -6 -6 -6 -6 ---------- Run | Yrd Mat Mat Min Mat Sto Rec Scr Fac Low Low Zio Dee Machines Disabled 4 | . . 1 . . 2 . . 1 . . . . Max in Single Turn 1 | . . 1 . . 1 . . 1 . . . . Machines Repaired . | . . . . . . . . . . . . . Machines Dismantled . | . . . . . . . . . . . . . Machines Sabotaged . | . . . . . . . . . . . . . Overloaded Fab Kills . | . . . . . . . . . . . . . Hacking | -11 -10 -9 -9 -8 -8 -8 -8 -6 -6 -6 -6 -6 --------- Run | Yrd Mat Mat Min Mat Sto Rec Scr Fac Low Low Zio Dee Machines Accessed 26 | . 4 2 1 . 2 14 . 3 . . . . Terminals 14 | . 4 1 . . 2 6 . 1 . . . . Fabricators . | . . . . . . . . . . . . . Repair Stations . | . . . . . . . . . . . . . Recycling Units 9 | . . 1 . . . 8 . . . . . . Scanalyzers 1 | . . . . . . . . 1 . . . . Garrison Access 1 | . . . . . . . . 1 . . . . Total Hacks 56 | . 13 4 1 . 6 24 . 8 . . . . Successful 26 | . 9 1 1 . 2 12 . 1 . . . . Failed 30 | . 4 3 . . 4 12 . 7 . . . . Catastrophic 7 | . 1 1 . . 2 3 . . . . . . Database Lockouts . | . . . . . . . . . . . . . Manual 51 | . 9 4 . . 7 21 . 2 . . 8 . Terminals 38 | . 13 2 . . 6 15 . 2 . . . . Fabricators . | . . . . . . . . . . . . . Repair Stations . | . . . . . . . . . . . . . Recycling Units 11 | . . 2 . . . 9 . . . . . . Scanalyzers 3 | . . . . . . . . 3 . . . . Garrison Access 3 | . . . . . . . . 3 . . . . Terminal Hacks 10 | . 5 . 1 . 1 3 . . . . . . Robot Schematic 1 | . . . . . . 1 . . . . . . Robot Analysis 1 | . 1 . . . . . . . . . . . Open Door 1 | . . . 1 . . . . . . . . . Emergency Access Points 1 | . 1 . . . . . . . . . . . Terminal Index 2 | . 1 . . . . 1 . . . . . . Recycling Unit Index 1 | . . . . . . 1 . . . . . . Alert Level 1 | . 1 . . . . . . . . . . . Unreport Threat 2 | . 1 . . . 1 . . . . . . . Fabricator Hacks . | . . . . . . . . . . . . . Repair Station Hacks . | . . . . . . . . . . . . . Recycling Unit Hacks . | . . . . . . . . . . . . . Scanalyzer 1 | . . . . . . . . 1 . . . . Retrieve Study 1 | . . . . . . . . 1 . . . . Garrison Access Hacks . | . . . . . . . . . . . . . Unauthorized Hacks 15 | . 4 1 . . 1 9 . . . . . . Terminals 6 | . 4 . . . 1 1 . . . . . . Botnet 6 | . 4 . . . 1 1 . . . . . . Fabricators . | . . . . . . . . . . . . . Repair Stations . | . . . . . . . . . . . . . Recycling Units 9 | . . 1 . . . 8 . . . . . . Monitor 1 | . . 1 . . . . . . . . . . Tunnel 8 | . . . . . . 8 . . . . . . Scanalyzers . | . . . . . . . . . . . . . Garrison Access . | . . . . . . . . . . . . . Data Cores Recovered . | . . . . . . . . . . . . . Used . | . . . . . . . . . . . . . Hacking Detections 15 | . 3 2 . . 3 4 . 3 . . . . Full Trace Events 8 | . 1 . . . 2 4 . 1 . . . . Feedback Events . | . . . . . . . . . . . . . Feedback Blocked . | . . . . . . . . . . . . . Robot Schematics Acquired 3 | . . . . . . 1 . . . . 2 . Robots Built . | . . . . . . . . . . . . . Authchips . | . . . . . . . . . . . . . Time . | . . . . . . . . . . . . . Total Robot Build Rating . | . . . . . . . . . . . . . Part Schematics Acquired 14 | . . . . . . . . . . . 14 . Parts Built . | . . . . . . . . . . . . . Authchips . | . . . . . . . . . . . . . Time . | . . . . . . . . . . . . . Total Part Build Rating . | . . . . . . . . . . . . . Part Studies Acquired 1 | . . . . . . . . 1 . . . . Parts Repaired . | . . . . . . . . . . . . . Time . | . . . . . . . . . . . . . Parts Recycled . | . . . . . . . . . . . . . Recycled Matter . | . . . . . . . . . . . . . Retrieved Matter . | . . . . . . . . . . . . . Retrieved Components . | . . . . . . . . . . . . . Parts Scanalyzed . | . . . . . . . . . . . . . Part Schematics Acquired . | . . . . . . . . . . . . . Parts Damaged . | . . . . . . . . . . . . . Bothacking | -11 -10 -9 -9 -8 -8 -8 -8 -6 -6 -6 -6 -6 ------------ Run | Yrd Mat Mat Min Mat Sto Rec Scr Fac Low Low Zio Dee Used RIF Installer . | . . . . . . . . . . . . . Robots Hacked . | . . . . . . . . . . . . . Non-combat . | . . . . . . . . . . . . . Combat . | . . . . . . . . . . . . . Robot Hacks Applied . | . . . . . . . . . . . . . Relay Couplers Released . | . . . . . . . . . . . . . Fabnet Peak Effective % . | . . . . . . . . . . . . . Robots Rewired 8 | . . . . . . 8 . . . . . . Allies Hacked . | . . . . . . . . . . . . . Hacks Repelled . | . . . . . . . . . . . . . Allies | -11 -10 -9 -9 -8 -8 -8 -8 -6 -6 -6 -6 -6 -------- Run | Yrd Mat Mat Min Mat Sto Rec Scr Fac Low Low Zio Dee Total Allies 10 | . . . 2 . . 8 . . . . . . Largest Group 8 | . . . 2 2 2 8 8 8 . . . . Highest-Rated Group 105 | . . . 37 37 37 105 105 105 . . . . Highest-Rated Ally 31 | . . . 31 31 31 18 18 18 . . . . Total Orders . | . . . . . . . . . . . . . Ally Attacks 22 | . . . . . 9 . . 13 . . . . Total Damage 313 | . . . . . 150 . . 163 . . . . Kills 4 | . . . . . 2 . . 2 . . . . Allies Corrupted . | . . . . . . . . . . . . . Allies Melted . | . . . . . . . . . . . . . Intel | -11 -10 -9 -9 -8 -8 -8 -8 -6 -6 -6 -6 -6 ------- Run | Yrd Mat Mat Min Mat Sto Rec Scr Fac Low Low Zio Dee Active Infowar (turns) 4891 | . . 279 123 21 420 1282 225 533 480 674 613 241 Sensors 4612 | . . . 123 21 420 1282 225 533 480 674 613 241 Structural 279 | . . 279 . . . . . . . . . . Robot Analysis Total 1 | . 1 . . . . . . . . . . . Derelict Logs Recovered 4 | . . . 1 . . . . . 1 1 1 . Drone Launches . | . . . . . . . . . . . . . Drone Recoveries . | . . . . . . . . . . . . . Exploration | -11 -10 -9 -9 -8 -8 -8 -8 -6 -6 -6 -6 -6 ------------- Run | Yrd Mat Mat Min Mat Sto Rec Scr Fac Low Low Zio Dee Turns Passed 5818 | 47 526 368 191 21 420 1282 225 533 480 674 613 438 Spaces Moved 4320 | 40 370 223 146 15 301 952 150 363 394 562 558 246 Core 4 | 3 . . . . . . . . . . . 1 Treads . | . . . . . . . . . . . . . Legs 3220 | . . . . . 86 952 150 363 394 562 558 155 Wheels 1080 | 37 370 223 146 15 215 . . . . . . 74 Hover 16 | . . . . . . . . . . . . 16 Flight . | . . . . . . . . . . . . . Fastest Speed 50 | 50 80 93 100 100 93 120 120 102 101 108 108 50 Average Speed 108 | 87 93 103 100 100 105 120 120 107 103 108 108 112 Slowest Speed 260 | 100 115 105 100 100 260 120 120 120 108 108 108 190 Overloaded Moves . | . . . . . . . . . . . . . Propulsion Burnouts . | . . . . . . . . . . . . . Robots Hopped . | . . . . . . . . . . . . . Potential Cave-ins . | . . . . . . . . . . . . . Cave-ins Triggered . | . . . . . . . . . . . . . Exploration Rate (%) 43 | 3 76 12 37 3 55 97 24 11 58 70 72 41 Regions Visited 12 Branch Regions 8 Pre-discovered Areas 10 | . . . 1 . . 8 . . . . 1 . Known Exits Taken 9 | . . 1 1 1 1 . 1 1 1 1 1 . Unknown Exits Taken 3 | 1 1 . . . . 1 . . . . . . Scrap Searched 8 | . . . . . . . 1 . 2 2 3 . Spaces Dug 2 | . . . . . 2 . . . . . . . Terrain Destroyed 108 | . . . . . 2 . . . . 43 . 63 Melee 2 | . . . . . 2 . . . . . . . Projectile 23 | . . . . . . . . . . 2 . 21 AOE 83 | . . . . . . . . . . 41 . 42 Terrain Rammed . | . . . . . . . . . . . . . Walls Destroyed . | . . . . . . . . . . . . . Machines Disabled . | . . . . . . . . . . . . . Actions | -11 -10 -9 -9 -8 -8 -8 -8 -6 -6 -6 -6 -6 --------- Run | Yrd Mat Mat Min Mat Sto Rec Scr Fac Low Low Zio Dee Total 5129 | 49 488 325 191 21 368 1057 195 468 450 613 569 335 Wait 385 | . 67 34 41 5 18 17 46 55 31 32 . 39 Move 4309 | 39 369 222 145 14 300 951 149 362 393 562 557 246 Hop . | . . . . . . . . . . . . . Pick Up 60 | 5 7 17 2 . 6 2 . 8 5 1 3 4 Fast Attach 34 | 5 2 6 . . 5 1 . 6 4 1 2 2 Attach 32 | . 2 5 1 2 2 1 . 9 1 . 2 7 Detach 7 | . . 2 . . . 1 . 1 . 1 2 . Swap 21 | . 4 3 1 . 3 . . 2 1 4 . 3 Drop 43 | . 3 13 1 . 9 2 . 3 6 2 3 1 Fire 154 | . 34 20 . . 18 22 . 21 9 10 . 20 Melee 22 | . . 1 . . 7 . . 1 . . . 13 Ram 2 | . . 2 . . . . . . . . . . Kick . | . . . . . . . . . . . . . Crush . | . . . . . . . . . . . . . Escape Stasis . | . . . . . . . . . . . . . Rewire 60 | . . . . . . 60 . . . . . . Trap . | . . . . . . . . . . . . . Miscellaneous . | . . . . . . . . . . . . . Route ------- -11/Scrapyard -10/Materials (discovered 2 exits: *Mat x2) -9/Materials -9/Mines -8/Materials -8/Storage (discovered 2 exits: [*Fac] / *Rec) -8/Recycling (discovered 2 exits: *Fac / [*Scr]) -8/Scraptown -6/Factory -6/Lower Caves -6/Lower Caves (discovered 2 exits: [*Fac] / *Zio) -6/Zion (discovered 2 exits: *Dee / [*Pro]) -6/Deep Caves History --------- Turn | Location | Event 9 | -11/Scrapyard | Discovered new exit (range 16) 48 | -11/Scrapyard | Entered Materials 277 | -10/Materials | Discovered new exit (range 16) 332 | -10/Materials | Build established: Mutant 530 | -10/Materials | Discovered new exit (range 16) 574 | -10/Materials | Entered another Materials area 574 | -9/Materials | Evolved 2 slots: Propulsion x1, Utility x1 792 | -9/Materials | Discovered new exit (range 7) 941 | -9/Materials | Identified exit to Mines 942 | -9/Materials | Entered Mines 971 | -9/Mines | Learned location of Recycling (-8) 973 | -9/Mines | Met a Derelict who couldn't figure out how to use a Trap Extractor 1124 | -9/Mines | Discovered new exit (range 5) 1128 | -9/Mines | Identified exit to Materials 1133 | -9/Mines | Entered Materials 1133 | -8/Materials | Accompanied by 2 allies 1133 | -8/Materials | Evolved 2 slots: Propulsion x1, Utility x1 1135 | -8/Materials | Discovered new exit (range 14) 1138 | -8/Materials | Led the pair of lost Derelicts to an unsafe place 1148 | -8/Materials | Identified exit to Storage 1154 | -8/Materials | Entered Storage 1154 | -8/Storage | Accompanied by 2 allies 1264 | -8/Storage | Met 01-MTF 1424 | -8/Storage | Lost 3 allies 1494 | -8/Storage | Discovered new exit (range 5) 1568 | -8/Storage | Used back door to open Recycling access 1568 | -8/Storage | Discovered new exit (range 4) 1570 | -8/Storage | Identified exit to Recycling 1574 | -8/Storage | Entered Recycling 2093 | -8/Recycling | Discovered new exit (range 8) 2577 | -8/Recycling | Identified exit to Factory 2813 | -8/Recycling | Scanned before Scraplab entrance 2830 | -8/Recycling | Entered Scraplab 2839 | -8/Recycling | Discovered new exit (range 3) 2856 | -8/Recycling | Entered Scraptown 2856 | -8/Scraptown | Accompanied by 8 allies 3022 | -8/Scraptown | Build established: Commander-Mutant 3027 | -8/Scraptown | Discovered exit to Factory (range 7) 3081 | -8/Scraptown | Entered Factory 3081 | -6/Factory | Accompanied by 8 allies 3081 | -6/Factory | Evolved 4 slots: Propulsion x1, Utility x2, Weapon x1 3236 | -6/Factory | Lost 6 allies 3515 | -6/Factory | Lost 6 parts (1p2n2u1w) 3605 | -6/Factory | Discovered new exit (range 4) 3611 | -6/Factory | Identified exit to Lower Caves 3614 | -6/Factory | Entered Lower Caves 3778 | -6/Lower Caves | Lost 3 parts (1n1u1w) 3779 | -6/Lower Caves | Learned Factory stockpile data 3910 | -6/Lower Caves | Found DCF Scrap (13 items) 4078 | -6/Lower Caves | Discovered new exit (range 16) 4093 | -6/Lower Caves | Identified exit to Lower Caves 4094 | -6/Lower Caves | Entered another Lower Caves area 4094 | -6/Lower Caves | Discovered new exit (range 11) 4177 | -6/Lower Caves | Attracted the attention of an 0b10 checkpoint 4224 | -6/Lower Caves | Build established: Derelict-Skirmisher 4292 | -6/Lower Caves | Spotted B-75 Beast 4368 | -6/Lower Caves | Learned Factory emergency access door positions 4748 | -6/Lower Caves | Discovered new exit (range 15) 4767 | -6/Lower Caves | Identified exit to Zion 4768 | -6/Lower Caves | Entered Zion 4793 | -6/Zion | Acquired unknown access codes intercepted by a Zionite 4818 | -6/Zion | Found CR-A16's Pointy Stick 4825 | -6/Zion | Discovered new exit (range 16) 4892 | -6/Zion | System corruption cleaned by Quarantine Array 4941 | -6/Zion | Learned location of Quarantine (-3) 4977 | -6/Zion | Learned 12 Factory zone layouts 5126 | -6/Zion | Build established: Derelict-Gunner 5150 | -6/Zion | Given the Hacking Drone Bay 5360 | -6/Zion | Opened final containment barrier to the Deep Caves 5375 | -6/Zion | Discovered new exit (range 5) 5377 | -6/Zion | Saw the warning signs outside the Deep Caves entrance 5379 | -6/Zion | Identified exit to Deep Caves 5381 | -6/Zion | Entered Deep Caves 5603 | -6/Deep Caves | Attacked by Z-Imprinter 5657 | -6/Deep Caves | Core integrity fell below 50% 5658 | -6/Deep Caves | Destroyed Z-Imprinter 5683 | -6/Deep Caves | Lost 9 parts (3n2u4w) 5768 | -6/Deep Caves | Z-Facility disabled 5810 | -6/Deep Caves | Core integrity fell below 20% 5819 | -6/Deep Caves | Released all parts (6) 5819 | -6/Deep Caves | Destroyed by O1-5HQ(z) with Zionite Laser-S Last Messages --------------- 05774_ O1-5HQ(z) suffers critical hit (Impale). 05778_ W7-0EB(z) destroyed. 05781_ Acquired 66 matter. 05782_ Destroyed Prototype Protection. 05788_ Fission Core destroyed. 05788_ Arm. Huge Wheel destroyed. 05793_ Acquired Prototype Protection. 05795_ Acquired Prototype Hover Unit. 05795_ Identified Zio. Glidesys I. 05798_ CR-A16's Pointy Stick destroyed. 05798_ Flexi-carbon Leg destroyed. 05811_ Arm. Leg destroyed. 05813_ Lgt. Ion Engine destroyed. 05819_ Zio. Glidesys I destroyed. 05819_ Released Mak. Hacking Suite. 05819_ Released Adv. Heat Sink. 05819_ Released Imp. Targeting Computer. 05819_ Released Lrg. Storage Unit. 05819_ Released Imp. Signal Interpreter. 05819_ Released Target Analyzer. Map ----- +----------------------------------------------------+ | ?????????????????????????????????????????????????# | | ???????????????????????????????????????????????### | | ??????????????????????????????????????????? ## # | | ???????????????????????????????????????? | | ??????????????????????????????????????? | | ?????????????????????????????????????? | | ?????????????????????????????????????? | | ?????????????????????????????????????? | | ??????????????????????????????????????"" | | ??????????????????????????????????????"" | | ??????????????????????? ???????????""" | | ????????????????????? ??????????"""" | | ?????????????????? ????????""" | | ???????????????? ?????""""""""" | | ?????????????? ?????""""""""" | | ?????????????? ""???""""""""" | | ????????????? """?"""""""""" | | ????????????? """?""""" " " | | ???????????? ""?""""""%= = | | ???????????? """""""" = * | | ???????????? """"""""" = | | ??????????? """""""""/ | | ??????????? """"""""""" * | | ?????????? """"""""""""" | | ?????????? """""" | | ?????????? @ """""" """ | | ????????? !!!"""""" """"" | | ????????? !!!"""""" """"""" | | ????????? """"" """"""" | | ????????? """ """"""" | | ????????? """" """"" | | ??????? "" """ | | ??????? """ | | ?????? """"""""""" | | ?????? """"""""" / | | ????? | | ?????? | | ?????? | | ????? | | ????? | | ????? | | ????? ##### | | ????? ### "## ####????# | | ??????? #???#* !"### ##???????? | | ????????? ?????###"# #### #####????????? | | ??????????#????????# ###??###########????????????? | | ????????????????????##???????????????????????????? | | | | | | | +----------------------------------------------------+ Best States ------------- Heat Dissipation 56 Energy Generation 18 Energy Capacity 310 Matter Stores 300 Matter Capacity 300 Sight Range 16 Robot Scan Range 15 Terrain Scan Density 10 Armor Coverage 225 Core Shielding 20 Evasion (%) 63 Targeting Accuracy 6 Target Analysis 5 Recoil Reduction 4 Offensive Hacking 11 Authchip Count 1 Trap Extractor Capacity 6 Item Schematics ----------------- Wave Gun | -6/Zion | Archive Imp. Cryofiber Web | -6/Zion | Archive Adv. Trap Extractor | -6/Zion | Archive Imp. Core Shielding | -6/Zion | Archive System Guard | -6/Zion | Archive Imp. Weapon Cycler | -6/Zion | Archive Adv. Reaction Control System | -6/Zion | Archive Phase Gun | -6/Zion | Archive Adv. Terrain Scanner | -6/Zion | Archive Remote Force Field | -6/Zion | Archive Plasma Rifle | -6/Zion | Archive Focal Shield | -6/Zion | Archive Mass Driver | -6/Zion | Archive Flexi-carbon Leg | -6/Zion | Archive Robot Schematics ------------------ G-47 Trooper | -8/Recycling | Hacked R-06 Scavenger | -6/Zion | Archive T-07 Excavator | -6/Zion | Archive Fabricated ------------ Nothing Repaired ---------- Nothing Studied --------- Carbon-fiber Leg | -6/Factory | Hacked Alien Tech Used ----------------- None Achievements -------------- Network Effect Challenges ------------ None Game ------ Seed AntimissilePersonalSpoofer Manual? 0 Play Time 01:01:02 Cumulative 50.5 hours Start 2025.12.24 @ 10:37:18 End 2026.02.07 @ 22:37:39 Sessions 10 Manual Loads 0 Difficulty Rogue Special Mode None Game No. 60 Rogue 60 Adventurer 0 Explorer 0 Win Type - Total 2 Types 2/0/0/0/0/0/0/0/0/0 Lore% 38 Gallery% 42 Achievement% 32 Wizard Run 0 Options --------- Layout 0 ASCII 0 Keyboard 1 Movement Numpad Keybinds 0 Fullscreen 1 Font 24/Smallcaps Map View 76x50 Zoom Use 0% Tactical HUD 1 Map Filters NONE Filters NONE Steam 1 RUN: d561ccad-0c7a-496d-b219-66dae1cd72ab